[Event "Fagernes Open 2021"]
[Site "Fagernes"]
[Date "2021.10.12"]
[Round "4.1"]
[White "Dahl, Torbjorn"]
[Black "Fiskaaen, Martin Holten"]
[Result "1/2-1/2"]
[ECO "A08"]
[WhiteElo "1876"]
[BlackElo "1829"]
[Annotator "NA"]
[PlyCount "69"]
[EventDate "2021.10.10"]
[EventCountry "NOR"]
[SourceTitle "playchess.com"]
[Source "ChessBase"]
[SourceQuality "1"]
[TimeControl "40/5400+30:1800+30"]

1. e4 {[%emt 0:00:00]} c5 {[%emt 0:00:00]} 2. d3 {[%emt 0:00:00]} Nc6 {[%emt 0:00:00]} 3. Nf3 {[%emt 0:00:00]} g6 {[%emt 0:00:00]} 4. g3 {[%emt 0:00:00]} Bg7 {[%emt 0:00:00]} 5. Bg2 {[%emt 0:00:00]} e6 {[%emt 0:01:49]} 6. O-O {[%emt 0:00:15]} d5 {[%emt 0:03:42]} 7. Nbd2 {[%emt 0:00:12]} Nge7 {[%emt 0:00:59]} 8. Re1 {[%emt 0:00:57]} O-O {[%emt 0:01:17]} 9. c3 {[%emt 0:00:14]} e5 {[%emt 0:14:03]} 10. Qe2 {[%emt 0:01:44]} d4 {[%emt 0:04:23]} 11. c4 {[%emt 0:04:05]} a6 {[%emt 0:04:12]} 12. Nf1 {[%emt 0:00:35]} b5 {[%emt 0:01:41]} 13. b3 {[%emt 0:01:02]} Qd6 {[%emt 0:04:48]} 14. h4 {[%emt 0:00:23]} f5 {[%emt 0:06:42]} 15. exf5 {[%emt 0:02:15]} gxf5 {[%emt 0:01:34]} 16. N1h2 {[%emt 0:06:48]} Bb7 {[%emt 0:11:55]} 17. Bg5 {[%emt 0:04:49]} Rae8 {[%emt 0:02:15]} 18. h5 {[%emt 0:03:41]} h6 {[%emt 0:03:38]} 19. Bd2 {[%emt 0:00:52]} Kh8 {[%emt 0:01:11]} 20. Nh4 {[%emt 0:01:16]} Kh7 {[%emt 0:05:27]} 21. Rac1 {[%emt 0:02:34]} Bf6 {[%emt 0:06:54]} 22. cxb5 {[%emt 0:07:10]} axb5 {[%emt 0:00:27]} 23. N2f3 {[%emt 0:13:09]} Ra8 {[%emt 0:03:39]} 24. Rc2 {[%emt 0:03:44]} e4 {[%emt 0:04:32]} 25. Nxf5 {[%emt 0:05:16]} Nxf5 {[%emt 0:01:01]} 26. Qxe4 {[%emt 0:00:28]} Bg7 {[%emt 0:03:13]} 27. Nh4 {[%emt 0:04:22]} Qd7 {[%emt 0:04:05]} 28. Bh3 {[%emt 0:08:42]} Ne5 {[%emt 0:04:19]} 29. Bxf5+ {[%emt 0:23:40]} Rxf5 {[%emt 0:00:17]} 30. Qxf5+ {[%emt 0:02:40]} Qxf5 {[%emt 0:00:06]} 31. Nxf5 {[%emt 0:00:08]} Nf3+ {[%emt 0:00:05]} 32. Kf1 {[%emt 0:01:04]} Nh2+ {[%emt 0:00:05]} 33. Kg1 {[%emt 0:00:12]} Nf3+ {[%emt 0:00:05]} 34. Kf1 {[%emt 0:00:24]} Nh2+ {[%emt 0:00:06]} 35. Kg1 {[%emt 0:00:20]} 1/2-1/2

[Event "Fagernes Open 2021"]
[Site "Fagernes"]
[Date "2021.10.12"]
[Round "4.2"]
[White "Eriksen, Olai Dyrhaug"]
[Black "Krivenko, Dion"]
[Result "0-1"]
[ECO "A26"]
[WhiteElo "1809"]
[BlackElo "2045"]
[Annotator "ChessBase"]
[PlyCount "72"]
[EventDate "2021.10.10"]
[EventCountry "NOR"]
[SourceTitle "playchess.com"]
[Source "ChessBase"]
[SourceQuality "1"]
[TimeControl "40/5400+30:1800+30"]

1. c4 {[%emt 0:00:00]} Nf6 {[%emt 0:00:00]} 2. Nc3 {[%emt 0:00:00]} g6 {[%emt 0:00:00]} 3. e4 {[%emt 0:00:00]} d6 {[%emt 0:00:00]} 4. g3 {[%emt 0:00:00]} Bg7 {[%emt 0:00:00]} 5. Bg2 {[%emt 0:00:00]} O-O {[%emt 0:00:00]} 6. Nge2 {[%emt 0:00:00]} e5 {[%emt 0:00:00]} 7. O-O {[%emt 0:00:00]} Nc6 {[%emt 0:00:00]} 8. d3 {[%emt 0:00:00]} Nd4 {[%emt 0:00:00]} 9. Nxd4 {[%emt 0:00:16]} exd4 {[%emt 0:00:00]} 10. Nd5 {[%emt 0:00:29]} c6 {[%emt 0:00:00]} 11. Nf4 {[%emt 0:10:53]} a6 {[%emt 0:02:11]} 12. b3 {[%emt 0:03:59]} Rb8 {[%emt 0:03:59]} 13. Bb2 {[%emt 0:02:15]} c5 {[%emt 0:00:41]} 14. Nd5 {[%emt 0:05:46]} b5 {[%emt 0:02:14]} 15. Qc2 {[%emt 0:11:54]} bxc4 {[%emt 0:02:20]} 16. bxc4 {[%emt 0:00:11]} Nxd5 {[%emt 0:01:00]} 17. exd5 {[%emt 0:00:33]} Bf5 {[%emt 0:00:29]} 18. Bc1 {[%emt 0:07:40]} Qa5 {[%emt 0:09:51]} 19. Bf4 {[%emt 0:02:56]} Rfd8 {[%emt 0:07:32]} 20. Rfb1 {[%emt 0:07:45]} Qc3 {[%emt 0:08:28]} 21. Qxc3 {[%emt 0:00:16]} dxc3 {[%emt 0:01:04]} 22. Rxb8 {[%emt 0:00:23]} Rxb8 {[%emt 0:00:06]} 23. Be4 {[%emt 0:12:07]} Bxe4 {[%emt 0:22:37]} 24. dxe4 {[%emt 0:00:09]} Rb6 {[%emt 0:00:01]} 25. Rc1 {[%emt 0:01:55]} Bd4 {[%emt 0:01:52]} 26. Kf1 {[%emt 0:02:58]} Rb2 {[%emt 0:03:36]} 27. Be3 {[%emt 0:00:24]} Kg7 {[%emt 0:11:25]} 28. Bxd4+ {[%emt 0:03:30]} cxd4 {[%emt 0:00:19]} 29. e5 {[%emt 0:13:08]} dxe5 {[%emt 0:00:19]} 30. a4 {[%emt 0:00:08]} Kf6 {[%emt 0:03:05]} 31. c5 {[%emt 0:00:20]} Ke7 {[%emt 0:00:41]} 32. Kg2 {[%emt 0:01:40]} e4 {[%emt 0:01:02]} 33. Kf1 {[%emt 0:01:51]} f5 {[%emt 0:01:32]} 34. h4 {[%emt 0:00:00]} Rb4 {[%emt 0:00:31]} 35. d6+ {[%emt 0:02:31]} Kd7 {[%emt 0:00:15]} 36. Ke1 {[%emt 0:00:24]} Kc6 {[%emt 0:00:54]} 0-1

[Event "Fagernes Open 2021"]
[Site "Fagernes"]
[Date "2021.10.12"]
[Round "4.3"]
[White "Ostensen, Nicolai Maxime"]
[Black "Kittilsen, Sigurd"]
[Result "0-1"]
[ECO "A36"]
[WhiteElo "1768"]
[BlackElo "1881"]
[Annotator "NA"]
[PlyCount "90"]
[EventDate "2021.10.10"]
[EventCountry "NOR"]
[SourceTitle "playchess.com"]
[Source "ChessBase"]
[SourceQuality "1"]
[TimeControl "40/5400+30:1800+30"]

1. c4 {[%emt 0:00:00]} c5 {[%emt 0:00:00]} 2. g3 {[%emt 0:00:00]} g6 {[%emt 0:00:00]} 3. Bg2 {[%emt 0:00:00]} Bg7 {[%emt 0:00:00]} 4. e3 {[%emt 0:00:00]} Nc6 {[%emt 0:00:00]} 5. Ne2 {[%emt 0:00:00]} e5 {[%emt 0:05:07]} 6. O-O {[%emt 0:00:00]} Nge7 {[%emt 0:00:31]} 7. Nbc3 {[%emt 0:00:00]} O-O {[%emt 0:01:12]} 8. a3 {[%emt 0:00:00]} d6 {[%emt 0:01:13]} 9. Rb1 {[%emt 0:00:00]} Be6 {[%emt 0:10:09]} 10. Nd5 {[%emt 0:00:00]} Rb8 {[%emt 0:02:47]} 11. Nec3 {[%emt 0:01:17]} a6 {[%emt 0:11:06]} 12. d3 {[%emt 0:19:53]} b5 {[%emt 0:03:10]} 13. b3 {[%emt 0:03:00]} Qd7 {[%emt 0:08:22]} 14. Re1 {[%emt 0:02:12]} Bh3 {[%emt 0:14:07]} 15. Bh1 {[%emt 0:01:50]} Nxd5 {[%emt 0:00:34]} 16. Nxd5 {[%emt 0:00:52]} Ne7 {[%emt 0:00:36]} 17. Bb2 {[%emt 0:02:10]} Nxd5 {[%emt 0:02:00]} 18. Bxd5 {[%emt 0:00:21]} Be6 {[%emt 0:02:48]} 19. Bg2 {[%emt 0:00:52]} d5 {[%emt 0:00:57]} 20. cxd5 {[%emt 0:01:44]} Bxd5 {[%emt 0:00:18]} 21. e4 {[%emt 0:02:54]} Be6 {[%emt 0:03:08]} 22. b4 {[%emt 0:01:11]} Rbc8 {[%emt 0:06:00]} 23. Bf1 {[%emt 0:02:21]} Qd6 {[%emt 0:02:51]} 24. Bc3 {[%emt 0:03:58]} Rfd8 {[%emt 0:02:49]} 25. bxc5 {[%emt 0:01:04]} Qxc5 {[%emt 0:00:38]} 26. Bb4 {[%emt 0:00:09]} Qd4 {[%emt 0:01:12]} 27. Qe2 {[%emt 0:01:30]} Bf8 {[%emt 0:03:53]} 28. Qb2 {[%emt 0:01:02]} Bc5 {[%emt 0:01:26]} 29. Bxc5 {[%emt 0:03:49]} Qxb2 {[%emt 0:03:28]} 30. Rxb2 {[%emt 0:00:02]} Rxc5 {[%emt 0:00:11]} 31. Kg2 {[%emt 0:02:32]} g5 {[%emt 0:03:13]} 32. Ra1 {[%emt 0:03:50]} Bd7 {[%emt 0:03:32]} 33. f3 {[%emt 0:01:28]} Rdc8 {[%emt 0:00:53]} 34. Kf2 {[%emt 0:00:33]} Rc1 {[%emt 0:01:33]} 35. Rab1 {[%emt 0:02:02]} Rxb1 {[%emt 0:02:31]} 36. Rxb1 {[%emt 0:00:01]} Rc2+ {[%emt 0:00:26]} 37. Be2 {[%emt 0:00:24]} Ra2 {[%emt 0:01:24]} 38. Rb3 {[%emt 0:00:19]} a5 {[%emt 0:02:28]} 39. Ke3 {[%emt 0:00:33]} f6 {[%emt 0:00:58]} 40. h4 {[%emt 0:00:54]} gxh4 {[%emt 0:00:53]} 41. gxh4 {[%emt 0:30:02]} Kf7 {[%emt 0:30:41]} 42. f4 {[%emt 0:01:43]} exf4+ {[%emt 0:00:00]} 43. Kf3 {[%emt 0:00:00]} h5 {[%emt 0:00:00]} 44. d4 {[%emt 0:00:00]} Bg4+ {[%emt 0:00:00]} 45. Kxf4 {[%emt 0:00:00]} Bxe2 {[%emt 0:00:00]} 0-1

[Event "Fagernes Open 2021"]
[Site "Fagernes"]
[Date "2021.10.12"]
[Round "4.4"]
[White "Kreken, Eivind Grunt"]
[Black "Myagmarsuren, Evsuld"]
[Result "1-0"]
[ECO "D48"]
[WhiteElo "1838"]
[BlackElo "1650"]
[Annotator "NA"]
[PlyCount "61"]
[EventDate "2021.10.10"]
[EventCountry "NOR"]
[SourceTitle "playchess.com"]
[Source "ChessBase"]
[SourceQuality "1"]
[TimeControl "40/5400+30:1800+30"]

1. d4 {[%emt 0:00:00]} d5 {[%emt 0:00:00]} 2. c4 {[%emt 0:00:00]} c6 {[%emt 0:00:00]} 3. Nf3 {[%emt 0:00:00]} e6 {[%emt 0:00:00]} 4. e3 {[%emt 0:00:00]} Nf6 {[%emt 0:00:00]} 5. Nc3 {[%emt 0:00:00]} Nbd7 {[%emt 0:00:00]} 6. Bd3 {[%emt 0:00:00]} dxc4 {[%emt 0:00:00]} 7. Bxc4 {[%emt 0:00:00]} b5 {[%emt 0:00:00]} 8. Bd3 {[%emt 0:00:00]} Bb7 {[%emt 0:00:00]} 9. e4 {[%emt 0:00:00]} a6 {[%emt 0:00:00]} 10. e5 {[%emt 0:00:00]} Nd5 {[%emt 0:00:00]} 11. Nxd5 {[%emt 0:00:00]} cxd5 {[%emt 0:00:00]} 12. h4 {[%emt 0:00:00]} Bb4+ {[%emt 0:00:03]} 13. Kf1 {[%emt 0:00:00]} Be7 {[%emt 0:01:28]} 14. Rh3 {[%emt 0:01:25]} b4 {[%emt 0:27:10]} 15. Rg3 {[%emt 0:09:27]} g6 {[%emt 0:03:29]} 16. h5 {[%emt 0:03:45]} a5 {[%emt 0:07:28]} 17. Kg1 {[%emt 0:01:45]} Ba6 {[%emt 0:04:49]} 18. Bh6 {[%emt 0:12:05]} Bxd3 {[%emt 0:12:19]} 19. Qxd3 {[%emt 0:00:11]} Rc8 {[%emt 0:04:59]} 20. Ng5 {[%emt 0:41:35]} Nf8 {[%emt 0:13:38]} 21. Qf3 {[%emt 0:11:52]} Bxg5 {[%emt 0:00:12]} 22. Bxg5 {[%emt 0:00:08]} Qd7 {[%emt 0:00:40]} 23. a3 {[%emt 0:09:55]} h6 {[%emt 0:07:21]} 24. Bf6 {[%emt 0:00:00]} Rg8 {[%emt 0:00:14]} 25. axb4 {[%emt 0:00:00]} axb4 {[%emt 0:00:20]} 26. Qb3 {[%emt 0:00:00]} Qb7 {[%emt 0:04:04]} 27. Rc3 {[%emt 0:03:30]} Rc4 {[%emt 0:04:21]} 28. Rxc4 {[%emt 0:04:12]} dxc4 {[%emt 0:00:07]} 29. Qa4+ {[%emt 0:00:16]} Nd7 {[%emt 0:00:51]} 30. Qa8+ {[%emt 0:00:23]} Qb8 {[%emt 0:00:05]} 31. Qc6 {[%emt 0:00:08]} 1-0

[Event "Fagernes Open 2021"]
[Site "Fagernes"]
[Date "2021.10.12"]
[Round "4.5"]
[White "Hellesoy, David"]
[Black "Amundsen, Ask"]
[Result "0-1"]
[ECO "B40"]
[WhiteElo "1500"]
[BlackElo "1816"]
[Annotator "NA"]
[PlyCount "68"]
[EventDate "2021.10.10"]
[EventCountry "NOR"]
[SourceTitle "playchess.com"]
[Source "ChessBase"]
[SourceQuality "1"]
[TimeControl "40/5400+30:1800+30"]

1. e4 {[%emt 0:00:00]} c5 {[%emt 0:00:00]} 2. Nf3 {[%emt 0:00:00]} e6 {[%emt 0:00:00]} 3. c4 {[%emt 0:00:00]} Nc6 {[%emt 0:00:00]} 4. Nc3 {[%emt 0:00:00]} a6 {[%emt 0:00:00]} 5. a4 {[%emt 0:00:35]} g6 {[%emt 0:00:00]} 6. d4 {[%emt 0:04:53]} cxd4 {[%emt 0:00:00]} 7. Nxd4 {[%emt 0:00:08]} Bg7 {[%emt 0:00:00]} 8. Nc2 {[%emt 0:09:09]} Nge7 {[%emt 0:06:40]} 9. Be2 {[%emt 0:03:37]} O-O {[%emt 0:01:01]} 10. O-O {[%emt 0:01:42]} d6 {[%emt 0:04:25]} 11. Be3 {[%emt 0:06:58]} e5 {[%emt 0:02:42]} 12. Qd2 {[%emt 0:03:12]} f5 {[%emt 0:05:12]} 13. Bh6 {[%emt 0:01:54]} Bxh6 {[%emt 0:03:07]} 14. Qxh6 {[%emt 0:01:48]} fxe4 {[%emt 0:00:51]} 15. Nxe4 {[%emt 0:01:15]} Nf5 {[%emt 0:00:59]} 16. Qd2 {[%emt 0:04:09]} Nfd4 {[%emt 0:01:50]} 17. Nxd4 {[%emt 0:02:37]} Nxd4 {[%emt 0:00:08]} 18. Bd1 {[%emt 0:07:06]} Be6 {[%emt 0:05:25]} 19. b3 {[%emt 0:06:26]} d5 {[%emt 0:05:07]} 20. Nc5 {[%emt 0:07:12]} dxc4 {[%emt 0:01:44]} 21. Qe3 {[%emt 0:03:45]} Bf7 {[%emt 0:16:14]} 22. bxc4 {[%emt 0:07:11]} Bxc4 {[%emt 0:02:09]} 23. Re1 {[%emt 0:01:33]} Qc7 {[%emt 0:01:50]} 24. Nb3 {[%emt 0:05:47]} Rad8 {[%emt 0:02:41]} 25. Nxd4 {[%emt 0:03:23]} exd4 {[%emt 0:00:36]} 26. Qc1 {[%emt 0:01:11]} b5 {[%emt 0:01:35]} 27. axb5 {[%emt 0:00:54]} axb5 {[%emt 0:00:14]} 28. Bb3 {[%emt 0:03:37]} Qf7 {[%emt 0:01:05]} 29. Bxc4 {[%emt 0:00:36]} bxc4 {[%emt 0:00:13]} 30. Re2 {[%emt 0:02:37]} c3 {[%emt 0:04:09]} 31. Qe1 {[%emt 0:03:42]} d3 {[%emt 0:01:24]} 32. Rea2 {[%emt 0:05:45]} d2 {[%emt 0:00:17]} 33. Qe2 {[%emt 0:01:32]} d1=Q+ {[%emt 0:01:27]} 34. Rxd1 {[%emt 0:00:44]} Qxf2+ {[%emt 0:00:18]} 0-1

[Event "Fagernes Open 2021"]
[Site "Fagernes"]
[Date "2021.10.12"]
[Round "4.6"]
[White "Dulman, Egmond-Gabriel"]
[Black "Orban, Tiberiu"]
[Result "1-0"]
[ECO "D36"]
[WhiteElo "2065"]
[BlackElo "1731"]
[Annotator "NA"]
[PlyCount "55"]
[EventDate "2021.10.10"]
[EventCountry "NOR"]
[SourceTitle "playchess.com"]
[Source "ChessBase"]
[SourceQuality "1"]
[TimeControl "40/5400+30:1800+30"]

1. d4 {[%emt 0:00:00]} Nf6 {[%emt 0:00:00]} 2. c4 {[%emt 0:00:00]} e6 {[%emt 0:00:00]} 3. Nc3 {[%emt 0:00:00]} d5 {[%emt 0:00:00]} 4. Bg5 {[%emt 0:00:00]} Be7 {[%emt 0:00:00]} 5. e3 {[%emt 0:00:00]} c6 {[%emt 0:00:00]} 6. cxd5 {[%emt 0:00:00]} exd5 {[%emt 0:00:00]} 7. Bd3 {[%emt 0:00:00]} Nbd7 {[%emt 0:00:09]} 8. Qc2 {[%emt 0:00:14]} Nf8 {[%emt 0:01:17]} 9. Rb1 {[%emt 0:05:01]} Ng4 {[%emt 0:02:45]} 10. Bf4 {[%emt 0:02:10]} Ng6 {[%emt 0:06:47]} 11. Bg3 {[%emt 0:00:40]} Nh4 {[%emt 0:06:07]} 12. Kf1 {[%emt 0:01:55]} Bd6 {[%emt 0:01:33]} 13. Nf3 {[%emt 0:02:55]} Ng6 {[%emt 0:07:11]} 14. Bxd6 {[%emt 0:08:19]} Qxd6 {[%emt 0:00:23]} 15. h3 {[%emt 0:00:26]} Nh6 {[%emt 0:01:25]} 16. g3 {[%emt 0:01:35]} Qf6 {[%emt 0:01:32]} 17. Kg2 {[%emt 0:01:22]} Nf5 {[%emt 0:07:57]} 18. b4 {[%emt 0:10:09]} Nfe7 {[%emt 0:04:31]} 19. b5 {[%emt 0:02:49]} Bf5 {[%emt 0:01:38]} 20. bxc6 {[%emt 0:04:22]} bxc6 {[%emt 0:00:55]} 21. e4 {[%emt 0:05:39]} dxe4 {[%emt 0:00:43]} 22. Nxe4 {[%emt 0:00:22]} Bxe4 {[%emt 0:00:24]} 23. Bxe4 {[%emt 0:00:08]} O-O {[%emt 0:00:28]} 24. Rb7 {[%emt 0:04:01]} Nd5 {[%emt 0:03:13]} 25. h4 {[%emt 0:03:32]} h5 {[%emt 0:01:53]} 26. Ng5 {[%emt 0:02:31]} Nge7 {[%emt 0:00:32]} 27. Bxd5 {[%emt 0:00:19]} Nxd5 {[%emt 0:00:24]} 28. Qh7# {[%emt 0:00:51]} 1-0

[Event "Fagernes Open 2021"]
[Site "Fagernes"]
[Date "2021.10.12"]
[Round "4.9"]
[White "Pedersen, Max Moe"]
[Black "Strand, Amund Pihl"]
[Result "1/2-1/2"]
[ECO "A72"]
[WhiteElo "1837"]
[BlackElo "1712"]
[Annotator "NA"]
[PlyCount "96"]
[EventDate "2021.10.10"]
[EventCountry "NOR"]
[SourceTitle "playchess.com"]
[Source "ChessBase"]
[SourceQuality "1"]
[TimeControl "40/5400+30:1800+30"]

1. d4 {[%emt 0:00:00]} Nf6 {[%emt 0:00:00]} 2. c4 {[%emt 0:00:00]} c5 {[%emt 0:00:00]} 3. d5 {[%emt 0:00:00]} e6 {[%emt 0:00:00]} 4. Nc3 {[%emt 0:00:00]} exd5 {[%emt 0:00:00]} 5. cxd5 {[%emt 0:00:00]} d6 {[%emt 0:00:00]} 6. Nf3 {[%emt 0:00:00]} g6 {[%emt 0:00:00]} 7. Nd2 {[%emt 0:00:00]} Bg7 {[%emt 0:00:00]} 8. e4 {[%emt 0:00:00]} O-O {[%emt 0:00:00]} 9. Be2 {[%emt 0:00:00]} Qe7 {[%emt 0:03:11]} 10. O-O {[%emt 0:00:00]} b6 {[%emt 0:06:11]} 11. a4 {[%emt 0:00:00]} Na6 {[%emt 0:10:57]} 12. f3 {[%emt 0:00:41]} Nc7 {[%emt 0:07:20]} 13. Nc4 {[%emt 0:03:45]} Nfe8 {[%emt 0:05:10]} 14. Bf4 {[%emt 0:10:04]} Ba6 {[%emt 0:01:15]} 15. Qd2 {[%emt 0:02:55]} Bxc4 {[%emt 0:01:17]} 16. Bxc4 {[%emt 0:00:05]} a6 {[%emt 0:05:47]} 17. Rfe1 {[%emt 0:06:13]} Qd7 {[%emt 0:11:19]} 18. Qd3 {[%emt 0:08:11]} Nf6 {[%emt 0:09:41]} 19. g4 {[%emt 0:16:22]} Rfd8 {[%emt 0:07:50]} 20. Rad1 {[%emt 0:00:00]} Nfe8 {[%emt 0:02:48]} 21. Re2 {[%emt 0:01:55]} Rdb8 {[%emt 0:02:01]} 22. e5 {[%emt 0:17:24]} dxe5 {[%emt 0:01:13]} 23. Bxe5 {[%emt 0:01:33]} Bxe5 {[%emt 0:03:45]} 24. Rxe5 {[%emt 0:00:10]} Nd6 {[%emt 0:00:07]} 25. Ne4 {[%emt 0:03:10]} Nxe4 {[%emt 0:05:05]} 26. Rxe4 {[%emt 0:00:45]} b5 {[%emt 0:02:28]} 27. Ba2 {[%emt 0:00:56]} c4 {[%emt 0:00:25]} 28. Qe2 {[%emt 0:01:43]} Re8 {[%emt 0:00:34]} 29. d6 {[%emt 0:04:35]} Ne6 {[%emt 0:01:22]} 30. Qe3 {[%emt 0:04:55]} Qa7 {[%emt 0:03:27]} 31. b3 {[%emt 0:02:57]} c3 {[%emt 0:02:10]} 32. Qxa7 {[%emt 0:04:34]} Rxa7 {[%emt 0:00:07]} 33. Rc1 {[%emt 0:00:58]} Rd7 {[%emt 0:01:00]} 34. axb5 {[%emt 0:01:57]} axb5 {[%emt 0:00:14]} 35. b4 {[%emt 0:02:04]} Rxd6 {[%emt 0:03:27]} 36. Re3 {[%emt 0:07:36]} (36. Rxc3 $11 Rd1+ 37. Kf2) 36... Rd4 {[%emt 0:03:45]} 37. Bxe6 {[%emt 0:00:59]} Rxe6 {[%emt 0:00:40]} 38. Rxe6 {[%emt 0:00:07]} fxe6 {[%emt 0:00:05]} 39. Rxc3 {[%emt 0:00:04]} Rxb4 {[%emt 0:00:09]} 40. Rc7 {[%emt 0:00:14]} Rb2 $11 {[%emt 0:00:25]} ({Better is} 40... Rb1+ $17 41. Kg2 g5) 41. Re7 {[%emt 0:31:18]} b4 {[%emt 0:31:10]} 42. Rxe6 {[%emt 0:00:04]} Kf7 {[%emt 0:00:11]} 43. Rb6 {[%emt 0:00:12]} h6 {[%emt 0:00:45]} 44. Rc6 {[%emt 0:00:25]} b3 {[%emt 0:00:37]} 45. Rb6 {[%emt 0:00:05]} Rb1+ {[%emt 0:00:52]} 46. Kg2 {[%emt 0:00:09]} b2 {[%emt 0:00:10]} 47. Kh3 {[%emt 0:00:24]} Rf1 {[%emt 0:01:10]} 48. Rxb2 {[%emt 0:00:09]} Rxf3+ {[%emt 0:01:25]} 1/2-1/2

[Event "Fagernes Open 2021"]
[Site "Fagernes"]
[Date "2021.10.12"]
[Round "4.10"]
[White "Fredriksen, Jan Gunnar"]
[Black "Grindbakken, Erik"]
[Result "1/2-1/2"]
[ECO "C00"]
[WhiteElo "1835"]
[BlackElo "1632"]
[Annotator "NA RC"]
[PlyCount "64"]
[EventDate "2021.10.10"]
[EventCountry "NOR"]
[SourceTitle "playchess.com"]
[Source "ChessBase"]
[SourceQuality "1"]
[TimeControl "40/5400+30:1800+30"]

1. e4 {[%emt 0:00:00]} e6 {[%emt 0:00:00]} 2. c4 {[%emt 0:00:00]} d5 {[%emt 0:00:00]} 3. exd5 {[%emt 0:00:00]} exd5 {[%emt 0:00:00]} 4. cxd5 {[%emt 0:00:00]} Nf6 {[%emt 0:00:00]} 5. Bb5+ {[%emt 0:00:00]} Bd7 {[%emt 0:00:00]} 6. Bc4 {[%emt 0:00:00]} Bg4 {[%emt 0:00:00]} 7. Qb3 {[%emt 0:00:00]} Qe7+ {[%emt 0:00:00]} 8. Qe3 {[%emt 0:00:12]} Nbd7 {[%emt 0:00:00]} 9. Nc3 {[%emt 0:00:26]} Nb6 {[%emt 0:00:06]} 10. Bb5+ {[%emt 0:04:38]} Bd7 {[%emt 0:01:12]} 11. d6 {[%emt 0:11:42]} Qxe3+ {[%emt 0:00:59]} 12. dxe3 {[%emt 0:00:46]} Bxd6 {[%emt 0:00:19]} 13. Bxd7+ {[%emt 0:01:42]} Kxd7 {[%emt 0:01:46]} 14. Nge2 {[%emt 0:00:54]} a6 {[%emt 0:01:17]} 15. O-O {[%emt 0:00:44]} Rae8 {[%emt 0:05:19]} 16. b3 {[%emt 0:02:03]} h5 {[%emt 0:02:02]} 17. Bb2 {[%emt 0:02:40]} h4 {[%emt 0:02:30]} 18. Rfd1 {[%emt 0:02:42]} Kc8 {[%emt 0:05:27]} 19. Rac1 {[%emt 0:01:13]} Kb8 {[%emt 0:03:48]} 20. h3 {[%emt 0:05:45]} Rh6 {[%emt 0:01:19]} 21. Nd4 {[%emt 0:00:23]} Rh5 {[%emt 0:02:51]} 22. Nf3 {[%emt 0:03:31]} Nbd7 {[%emt 0:07:11]} 23. Rd4 {[%emt 0:06:22]} Ne5 {[%emt 0:05:11]} 24. Nxe5 {[%emt 0:09:43]} Bxe5 {[%emt 0:00:41]} 25. Rd3 {[%emt 0:01:51]} Rhh8 {[%emt 0:17:51]} 26. Na4 {[%emt 0:03:26]} Bxb2 {[%emt 0:00:23]} 27. Nxb2 {[%emt 0:00:07]} Rd8 {[%emt 0:01:01]} 28. Rcd1 {[%emt 0:01:46]} Kc8 {[%emt 0:00:26]} 29. Kf1 {[%emt 0:00:46]} Rxd3 {[%emt 0:01:31]} 30. Rxd3 {[%emt 0:02:13]} Rd8 {[%emt 0:00:20]} 31. Ke2 {[%emt 0:00:55]} Ne4 {[%emt 0:01:02]} 32. Nd1 {[%emt 0:01:28]} Rd7 {[%emt 0:08:56]} 1/2-1/2

[Event "Fagernes Open 2021"]
[Site "Fagernes"]
[Date "2021.10.12"]
[Round "4.11"]
[White "Bach, Oliver"]
[Black "Lystad, Maximilian L"]
[Result "1/2-1/2"]
[ECO "E12"]
[WhiteElo "1715"]
[BlackElo "1767"]
[Annotator "NA"]
[PlyCount "127"]
[EventDate "2021.10.10"]
[EventCountry "NOR"]
[SourceTitle "playchess.com"]
[Source "ChessBase"]
[SourceQuality "1"]
[TimeControl "40/5400+30:1800+30"]

1. d4 {[%emt 0:00:00]} e6 {[%emt 0:00:00]} 2. Nf3 {[%emt 0:00:00]} Nf6 {[%emt 0:00:00]} 3. c4 {[%emt 0:00:00]} b6 {[%emt 0:00:00]} 4. Nc3 {[%emt 0:00:00]} Bb7 {[%emt 0:00:00]} 5. Bg5 {[%emt 0:00:00]} Be7 {[%emt 0:00:00]} 6. e3 {[%emt 0:00:00]} Ne4 {[%emt 0:00:00]} 7. Bxe7 {[%emt 0:00:00]} Qxe7 {[%emt 0:00:00]} 8. Nxe4 {[%emt 0:00:00]} Bxe4 {[%emt 0:00:00]} 9. Bd3 {[%emt 0:00:00]} Qb4+ {[%emt 0:00:27]} 10. Qd2 {[%emt 0:00:00]} Qxd2+ {[%emt 0:00:46]} 11. Kxd2 {[%emt 0:00:00]} Bxd3 {[%emt 0:04:01]} 12. Kxd3 {[%emt 0:00:00]} Nc6 {[%emt 0:00:22]} 13. e4 {[%emt 0:00:00]} O-O {[%emt 0:03:55]} 14. Rhe1 {[%emt 0:00:00]} f5 {[%emt 0:03:37]} 15. e5 {[%emt 0:00:11]} Rab8 {[%emt 0:01:45]} 16. a3 {[%emt 0:04:34]} b5 {[%emt 0:00:50]} 17. b4 {[%emt 0:01:34]} bxc4+ {[%emt 0:01:09]} 18. Kxc4 {[%emt 0:00:22]} Ne7 {[%emt 0:00:09]} 19. Rab1 {[%emt 0:10:13]} Rb6 {[%emt 0:03:26]} 20. b5 {[%emt 0:02:23]} c6 {[%emt 0:00:51]} 21. bxc6 {[%emt 0:02:33]} Rxc6+ {[%emt 0:00:11]} 22. Kd3 {[%emt 0:00:39]} Rfc8 {[%emt 0:00:32]} 23. Rb3 {[%emt 0:00:59]} Nd5 {[%emt 0:00:17]} 24. Reb1 {[%emt 0:01:52]} Nf4+ {[%emt 0:02:09]} 25. Ke3 {[%emt 0:00:59]} Nxg2+ {[%emt 0:00:11]} 26. Ke2 {[%emt 0:00:24]} Nf4+ {[%emt 0:01:50]} 27. Ke3 {[%emt 0:02:26]} Nd5+ {[%emt 0:00:16]} 28. Kd3 {[%emt 0:00:23]} Rc3+ {[%emt 0:04:20]} 29. Kd2 {[%emt 0:07:03]} Rc2+ {[%emt 0:08:05]} 30. Ke1 {[%emt 0:04:28]} R8c3 {[%emt 0:08:50]} 31. Rxc3 {[%emt 0:12:11]} Rxc3 {[%emt 0:00:12]} 32. Rb8+ {[%emt 0:00:15]} Kf7 {[%emt 0:00:06]} 33. Nd2 {[%emt 0:00:17]} Rxa3 {[%emt 0:12:51]} 34. Nc4 {[%emt 0:02:11]} Ra4 {[%emt 0:02:20]} 35. Nd6+ {[%emt 0:00:24]} Kg6 {[%emt 0:00:08]} 36. Rb7 {[%emt 0:01:47]} Rxd4 {[%emt 0:01:38]} 37. Rxa7 {[%emt 0:01:42]} Nf4 {[%emt 0:04:52]} 38. Ra5 {[%emt 0:04:55]} Rd5 {[%emt 0:03:24]} 39. Rxd5 {[%emt 0:00:41]} Nxd5 {[%emt 0:00:10]} 40. Ke2 {[%emt 0:01:32]} Kh5 {[%emt 0:01:24]} 41. Kf3 {[%emt 0:31:30]} Ne7 {[%emt 0:30:40]} 42. Nc4 {[%emt 0:00:37]} Nc6 {[%emt 0:00:31]} 43. Kg3 {[%emt 0:01:04]} g5 {[%emt 0:01:51]} 44. f4 {[%emt 0:01:58]} gxf4+ {[%emt 0:00:10]} 45. Kxf4 {[%emt 0:00:22]} Nb4 {[%emt 0:00:26]} 46. Kf3 {[%emt 0:03:49]} Nc6 {[%emt 0:04:26]} 47. Kf4 {[%emt 0:00:58]} Ne7 {[%emt 0:01:35]} 48. Kf3 {[%emt 0:02:16]} Nd5 {[%emt 0:00:17]} 49. Kg3 {[%emt 0:02:36]} Nc3 {[%emt 0:03:27]} 50. Nb6 {[%emt 0:01:55]} Ne4+ {[%emt 0:00:15]} 51. Kf4 {[%emt 0:01:16]} Nc5 {[%emt 0:01:37]} 52. Ke3 {[%emt 0:02:15]} Kg4 {[%emt 0:02:17]} 53. Kd4 {[%emt 0:01:12]} Nb3+ {[%emt 0:00:07]} 54. Kc4 {[%emt 0:00:46]} Nd2+ {[%emt 0:00:24]} 55. Kd3 {[%emt 0:01:20]} Nf3 {[%emt 0:00:14]} 56. Nxd7 {[%emt 0:00:45]} Kf4 {[%emt 0:00:06]} 57. Nf8 {[%emt 0:00:58]} Kxe5 {[%emt 0:02:23]} 58. Nxh7 {[%emt 0:02:15]} Nxh2 {[%emt 0:00:08]} 59. Ke3 {[%emt 0:00:49]} f4+ {[%emt 0:00:19]} 60. Kf2 {[%emt 0:00:35]} Ng4+ {[%emt 0:00:19]} 61. Kf3 {[%emt 0:00:32]} Kf5 {[%emt 0:00:09]} 62. Nf8 {[%emt 0:00:43]} Nf6 {[%emt 0:00:21]} 63. Nxe6 {[%emt 0:00:37]} Kxe6 {[%emt 0:00:04]} 64. Kxf4 {[%emt 0:00:01]} 1/2-1/2